{"text_format":"1","workbook":"xlsx","n_sheets":2,"sheets":["CYO","base"],"not_rendered":{"charts":0,"images":0,"macros":1,"external_links":0,"defined_names":2,"comments":0,"pivot_tables":0},"unopened":[],"bounds":{"document_bytes":16777216,"sheet_cells":100000,"rows_first":2000,"rows_last":500,"rows_between":2000,"halvings":0,"cell_chars":16384,"cell_head_chars":4096},"cells_cut":0,"cells_raw":0,"read":"whole","date_system":"1900"}

{"sheet":"CYO","index":0,"n_rows":34,"n_cols":12,"rows_kept":34,"cut":false,"hidden":false,"merged":[[3,1,3,3],[4,1,4,3],[5,1,5,3],[6,1,6,3],[7,1,7,3],[27,2,27,4],[8,1,8,3],[9,1,9,3],[33,3,33,4],[29,3,29,4],[31,3,31,4],[10,1,10,3],[11,1,11,3],[12,1,12,3],[13,1,13,3],[1,8,7,12],[8,8,13,11],[2,5,2,6],[3,5,3,6],[4,5,4,6],[5,5,5,6],[6,5,6,6],[8,5,8,6],[7,5,7,6],[9,5,9,6],[10,5,10,6],[11,5,11,6],[12,5,12,6],[13,5,13,6]]}
[]
[null,"FECHA",{"$f":"TODAY()","v":"2016-08-19"},null,null,"NRO CUENTA AIR",null,null,"Mónica González\nProduct Manager Microsoft Licencias por Volumen\n\nDr. Ramon Carrillo 216 CABA\nTeléfono: 4016-0200 INT 275\nMóvil: 011 15 3774-7336\nE-mail: mgonzalez@air-computers.com"]
[null,null,null,null,"CLIENTE FINAL","REVENDEDOR"]
[null,"RAZON SOCIAL",null,null,"DATOS OBLIGATORIOS","DATOS OBLIGATORIOS"]
[null,"EMAIL",null,null,"DATOS OBLIGATORIOS","DATOS OBLIGATORIOS"]
[null,"RUBRO",null,null,"DATOS OBLIGATORIOS","DATOS OBLIGATORIOS"]
[null,"CUIT  ",null,null,"DATOS OBLIGATORIOS","DATOS OBLIGATORIOS"]
[null,"DIRECCION",null,null,"DATOS OBLIGATORIOS","DATOS OBLIGATORIOS"]
[null,"CIUDAD ",null,null,"DATOS OBLIGATORIOS","DATOS OBLIGATORIOS",null,null,"German Falletti\nEspecialista Microsoft Licencias por Volumen\n\nSan Nicolas 1450 - Rosario - Santa Fe\nTeléfono: 0341 4362836\nMóvil:  0341 155555481\nE-mail: gfalletti@air-computers.com"]
[null,"PROVINCIA  ",null,null,"DATOS OBLIGATORIOS","DATOS OBLIGATORIOS"]
[null,"CODIGO POSTAL",null,null,"DATOS OBLIGATORIOS","DATOS OBLIGATORIOS"]
[null,"TELEFONO / FAX",null,null,"DATOS OBLIGATORIOS","DATOS OBLIGATORIOS"]
[null,"CONTACTO",null,null,"DATOS OBLIGATORIOS","DATOS OBLIGATORIOS"]
[null,"CONTRATO VIGENTE"]
[]
[]
[null,"Cantidad","Código Air","SKU Microsoft","Descripción del producto","Unitario  Reseller U$S sin IVA","Total  Reseller U$S SIN IVA",null,"Unitario Usuario Final  U$S SIN IVA  (sólo en CYO)","Total Usuario Final U$S SIN IVA (sólo en CYO)",null,"Comisión   Reseller por CYO"]
[null,0,null,{"$f":"IFERROR( VLOOKUP(C18,base!$A$1:$B$199,2,FALSE),0)","v":0},{"$f":"IFERROR(VLOOKUP(D18,base!$B$1:$C$199,2,FALSE),\"Completar en la columna Cod. Air o SKU Microsoft\")","v":"Completar en la columna Cod. Air o SKU Microsoft"},{"$f":"IFERROR(VLOOKUP(E18,base!$C$1:$D$199,2,FALSE),0)","v":0},{"$f":"F18*B18","v":0},null,0,{"$f":"I18*B18","v":0},null,{"$f":"(J18-G18)-((J18-G18)*0)","v":0}]
[null,0,null,{"$f":"IFERROR( VLOOKUP(C19,base!$A$1:$B$199,2,FALSE),0)","v":0},{"$f":"IFERROR(VLOOKUP(D19,base!$B$1:$C$199,2,FALSE),\"Completar en la columna Cod. Air o SKU Microsoft\")","v":"Completar en la columna Cod. Air o SKU Microsoft"},{"$f":"IFERROR(VLOOKUP(E19,base!$C$1:$D$199,2,FALSE),0)","v":0},0,null,0,0,null,{"$f":"(J19-G19)-((J19-G19)*0)","v":0}]
[null,0,null,{"$f":"IFERROR( VLOOKUP(C20,base!$A$1:$B$199,2,FALSE),0)","v":0},{"$f":"IFERROR(VLOOKUP(D20,base!$B$1:$C$199,2,FALSE),\"Completar en la columna Cod. Air o SKU Microsoft\")","v":"Completar en la columna Cod. Air o SKU Microsoft"},{"$f":"IFERROR(VLOOKUP(E20,base!$C$1:$D$199,2,FALSE),0)","v":0},0,null,0,0,null,0]
[null,0,null,{"$f":"IFERROR( VLOOKUP(C21,base!$A$1:$B$199,2,FALSE),0)","v":0},{"$f":"IFERROR(VLOOKUP(D21,base!$B$1:$C$199,2,FALSE),\"Completar en la columna Cod. Air o SKU Microsoft\")","v":"Completar en la columna Cod. Air o SKU Microsoft"},{"$f":"IFERROR(VLOOKUP(E21,base!$C$1:$D$199,2,FALSE),0)","v":0},0,null,0,0,null,0]
[null,0,null,{"$f":"IFERROR( VLOOKUP(C22,base!$A$1:$B$199,2,FALSE),0)","v":0},{"$f":"IFERROR(VLOOKUP(D22,base!$B$1:$C$199,2,FALSE),\"Completar en la columna Cod. Air o SKU Microsoft\")","v":"Completar en la columna Cod. Air o SKU Microsoft"},{"$f":"IFERROR(VLOOKUP(E22,base!$C$1:$D$199,2,FALSE),0)","v":0},0,null,0,0,null,0]
[null,0,null,{"$f":"IFERROR( VLOOKUP(C23,base!$A$1:$B$199,2,FALSE),0)","v":0},{"$f":"IFERROR(VLOOKUP(D23,base!$B$1:$C$199,2,FALSE),\"Completar en la columna Cod. Air o SKU Microsoft\")","v":"Completar en la columna Cod. Air o SKU Microsoft"},{"$f":"IFERROR(VLOOKUP(E23,base!$C$1:$D$199,2,FALSE),0)","v":0},0,null,0,0,null,0]
[null,0,null,{"$f":"IFERROR( VLOOKUP(C24,base!$A$1:$B$199,2,FALSE),0)","v":0},{"$f":"IFERROR(VLOOKUP(D24,base!$B$1:$C$199,2,FALSE),\"Completar en la columna Cod. Air o SKU Microsoft\")","v":"Completar en la columna Cod. Air o SKU Microsoft"},{"$f":"IFERROR(VLOOKUP(E24,base!$C$1:$D$199,2,FALSE),0)","v":0},0,null,0,0,null,0]
[null,0,null,{"$f":"IFERROR( VLOOKUP(C25,base!$A$1:$B$199,2,FALSE),0)","v":0},{"$f":"IFERROR(VLOOKUP(D25,base!$B$1:$C$199,2,FALSE),\"Completar en la columna Cod. Air o SKU Microsoft\")","v":"Completar en la columna Cod. Air o SKU Microsoft"},{"$f":"IFERROR(VLOOKUP(E25,base!$C$1:$D$199,2,FALSE),0)","v":0},0,null,0,0,null,0]
[null,0,null,{"$f":"IFERROR( VLOOKUP(C26,base!$A$1:$B$199,2,FALSE),0)","v":0},{"$f":"IFERROR(VLOOKUP(D26,base!$B$1:$C$199,2,FALSE),\"Completar en la columna Cod. Air o SKU Microsoft\")","v":"Completar en la columna Cod. Air o SKU Microsoft"},{"$f":"IFERROR(VLOOKUP(E26,base!$C$1:$D$199,2,FALSE),0)","v":0},0,null,0,0,null,0]
[]
[null,null,"Seleccionar la opción correspondiente"]
[]
[null,null,"Cuenta y Orden",null,null,"SubTotal U$S S/IVA",{"$f":"SUM(G18:G28)","v":0},null,"SubTotal U$S S/IVA",{"$f":"SUM(J18:J28)","v":0},null,{"$f":"SUM(L18:L28)","v":0}]
[]
[null,null,"Forma de Pago","Seleccionar de menú desplegable",null,"IVA 21%",{"$f":"G30*0.21","v":0},null,"IVA 21%",{"$f":"J30*0.21","v":0},null,{"$f":"L30*0.21","v":0}]
[]
[null,null,"Valores","Seleccionar de menú desplegable",null,"Total U$S C/IVA",{"$f":"G30+G32","v":0},null,"Total U$S C/IVA",{"$f":"J30+J32","v":0},null,{"$f":"L30+L32","v":0}]

{"sheet":"base","index":1,"n_rows":212,"n_cols":4,"rows_kept":212,"cut":false,"hidden":false,"merged":[]}
["Código Air","SKU","ItemLegalName","Precio"]
[13231,"077-06686","Microsoft®Access 2013 Government OLP 1License NoLevel",141.94]
[12699,"077-06674","Microsoft®Access 2013 Sngl OLP 1License NoLevel",214.74]
[18610,"5S2-00003","Microsoft®AzureSubscriptionServicesOpen ShrdSvr Sngl SubscriptionVL OLP 1License NoLevel Qualified Annual",96.14]
[18538,"YJD-01110","Microsoft®CoreInfrastructureSvrSteStd Sngl License/SoftwareAssurancePack OLP 1License NoLevel 2Proc Qualified",2875.6]
[11590,"QZA-00056","Microsoft®DynamicsCRMBasicCAL Sngl License/SoftwareAssurancePack OLP 1License NoLevel DvcCAL Qualified",314.36]
[11586,"3CJ-00020","Microsoft®DynamicsCRMEssentialCAL Sngl License/SoftwareAssurancePack OLP 1License NoLevel DvcCAL Qualified",104.74]
[11592,"ZGA-00056","Microsoft®DynamicsCRMExternalConnector Sngl License/SoftwareAssurancePack OLP 1License NoLevel Qualified",5253.91]
[11583,"ZFA-00116","Microsoft®DynamicsCRMProfessionalCAL Sngl License/SoftwareAssurancePack OLP 1License NoLevel DvcCAL Qualified",1048.93]
[11591,"N9J-00575","Microsoft®DynamicsCRMSvr Sngl License/SoftwareAssurancePack OLP 1License NoLevel Qualified",5253.91]
[15120,"065-08147","Microsoft®Excel 2013 Government OLP 1License NoLevel",138.57]
[12651,"065-08133","Microsoft®Excel 2013 Sngl OLP 1License NoLevel",209.73]
[15001,"PGI-00595","Microsoft®ExchangeEnterpriseCAL 2013 Sngl Academic OLP 1License NoLevel UsrCAL WithoutServices",11.78]
[16906,"Q6Y-00003","Microsoft®ExchangeOnlinePlan1Open ShrdSvr Sngl SubscriptionVL OLP 1License NoLevel Qualified Annual",46.1]
[15402,"R9Y-00003","Microsoft®ExchangeOnlineProtectionOpen ShrdSvr Sngl SubscriptionVL OLP 1License NoLevel Qualified Annual",11.93]
[14559,"395-04458","Microsoft®ExchangeServerEnterprise 2013 Sngl Academic OLP 1License NoLevel",1158.1500000000001]
[15522,"395-04469","Microsoft®ExchangeServerEnterprise 2013 Sngl OLP 1License NoLevel",4632.45]
[13070,"312-04261","Microsoft®ExchangeServerStandard 2013 Sngl OLP 1License NoLevel",809.24]
[9625,"312-03037","Microsoft®ExchangeServerStandard Sngl License/SoftwareAssurancePack OLV 1License NoLevel AdditionalProduct 1Year Acquiredyear1",534.94000000000005]
[15898,"312-03039","Microsoft®ExchangeServerStandard Sngl License/SoftwareAssurancePack OLV 1License NoLevel AdditionalProduct 1Year Acquiredyear3",1093.72]
[13863,"312-03042","Microsoft®ExchangeServerStandard Sngl SoftwareAssurance OLV 1License NoLevel AdditionalProduct 3Year Acquiredyear1",561.59]
[47423,"381-04334","Microsoft®ExchangeStandardCAL 2013 Government OLP 1License NoLevel DvcCAL",50.97]
[14520,"381-04335","Microsoft®ExchangeStandardCAL 2013 Government OLP 1License NoLevel UsrCAL",58.69]
[12673,"381-04313","Microsoft®ExchangeStandardCAL 2013 Sngl OLP 1License NoLevel DvcCAL",77.17]
[12674,"381-04315","Microsoft®ExchangeStandardCAL 2013 Sngl OLP 1License NoLevel UsrCAL",88.8]
[9627,"381-02252","Microsoft®ExchangeStandardCAL Sngl License/SoftwareAssurancePack OLV 1License NoLevel AdditionalProduct DvcCAL 1Year Acquiredyear1",50.93]
[15922,"381-02254","Microsoft®ExchangeStandardCAL Sngl License/SoftwareAssurancePack OLV 1License NoLevel AdditionalProduct DvcCAL 1Year Acquiredyear3",104.29]
[13864,"381-02262","Microsoft®ExchangeStandardCAL Sngl SoftwareAssurance OLV 1License NoLevel AdditionalProduct DvcCAL 3Year Acquiredyear1",53.34]
[17650,"381-02265","Microsoft®ExchangeStandardCAL Sngl SoftwareAssurance OLV 1License NoLevel AdditionalProduct UsrCAL 1Year Acquiredyear1",23.7]
[13865,"381-02267","Microsoft®ExchangeStandardCAL Sngl SoftwareAssurance OLV 1License NoLevel AdditionalProduct UsrCAL 3Year Acquiredyear1",61.4]
[11600,"6YH-00446","Microsoft®Lync Sngl License/SoftwareAssurancePack OLP 1License NoLevel",55.7]
[18332,"R6Z-00003","Microsoft®LyncOnlinePlan2Open ShrdSvr Sngl SubscriptionVL OLP 1License NoLevel Qualified Annual",63.46]
[11598,"YEG-00287","Microsoft®LyncServerPlusCAL Sngl License/SoftwareAssurancePack OLP 1License NoLevel DvcCAL",184.23]
[11599,"6ZH-00277","Microsoft®LyncServerStdCAL Sngl License/SoftwareAssurancePack OLP 1License NoLevel DvcCAL",46.47]
[16983,"Q7Y-00003","Microsoft®O365ProPlusOpen ShrdSvr Sngl SubscriptionVL OLP 1License NoLevel Qualified Annual",138.31]
[17904,"S3Y-00003","Microsoft®O365ProPlusOpenforFaculty ShrdSvr Sngl SubscriptionVL Academic OLP 1License NoLevel Qualified Annual",24.68]
[12583,"021-10271","Microsoft®Office 2013 Government OLP 1License NoLevel",281.22000000000003]
[12581,"021-10234","Microsoft®Office 2013 Sngl Academic OLP 1License NoLevel APLICAR PROMO de 25 a 249 LICENCIAS",63.78]
[12529,"021-10257","Microsoft®Office 2013 Sngl OLP 1License NoLevel",418.34]
[8615,"021-07160","Microsoft®Office License/SoftwareAssurancePack Government OLP 1License NoLevel",444.37]
[8830,"021-07257","Microsoft®Office Sngl License/SoftwareAssurancePack OLV 1License NoLevel AdditionalProduct 1Year Acquiredyear1",283.39999999999998]
[15923,"021-07259","Microsoft®Office Sngl License/SoftwareAssurancePack OLV 1License NoLevel AdditionalProduct 1Year Acquiredyear3",593.54]
[18739,"021-05624","Microsoft®Office Sngl SoftwareAssurance OLP 1License NoLevel",246.71]
[16272,"021-07262","Microsoft®Office Sngl SoftwareAssurance OLV 1License NoLevel AdditionalProduct 1Year Acquiredyear1",131.85]
[13868,"021-07266","Microsoft®Office Sngl SoftwareAssurance OLV 1License NoLevel AdditionalProduct 3Year Acquiredyear1",393.97]
[18659,"9F5-00003","Microsoft®Office365BusinessEssentialsOpen ShrdSvr Sngl SubscriptionVL OLP 1License NoLevel Qualified Annual",57.63]
[18536,"J29-00003","Microsoft®Office365BusinessOpen ShrdSvr Sngl SubscriptionVL OLP 1License NoLevel Qualified Annual",95.06]
[18535,"9F4-00003","Microsoft®Office365BusinessPremiumOpen ShrdSvr Sngl SubscriptionVL OLP 1License NoLevel Qualified Annual",144.13999999999999]
[15956,"5GV-00003","Microsoft®Office365MidsizeBusinessOpen ShrdSvr Sngl SubscriptionVL OLP 1License NoLevel Qualified Annual",144.01]
[17655,"Q4Y-00002","Microsoft®Office365PlanE1Open ShrdSvr Sngl MonthlySubscriptions-VolumeLicense OLV 1License NoLevel AdditionalProduct 1Month",92.21]
[15713,"Q4Y-00003","Microsoft®Office365PlanE1Open ShrdSvr Sngl SubscriptionVL OLP 1License NoLevel Qualified Annual",92.21]
[17430,"Q4Y-00006","Microsoft®Office365PlanE1Open ShrdSvr SubscriptionVL Government OLP 1License NoLevel Qualified Annual",69.16]
[15235,"Q5Y-00003","Microsoft®Office365PlanE3Open ShrdSvr Sngl SubscriptionVL OLP 1License NoLevel Qualified Annual",230.52]
[18932,"3YF-00125","Microsoft®OfficeMacStandard 2011 Government OLP 1License NoLevel",281.22000000000003]
[8622,"3YF-00096","Microsoft®OfficeMacStandard 2011 Sngl OLP 1License NoLevel",425.61]
[12582,"79P-04763","Microsoft®OfficeProfessionalPlus 2013 Government OLP 1License NoLevel",383.99]
[12580,"79P-04730","Microsoft®OfficeProfessionalPlus 2013 Sngl Academic OLP 1License NoLevel APLICAR PROMO de 25 a 249 LICENCIAS",82.99]
[12577,"79P-04749","Microsoft®OfficeProfessionalPlus 2013 Sngl OLP 1License NoLevel",571]
[18239,"269-08812","Microsoft®OfficeProfessionalPlus License/SoftwareAssurancePack Government OLP 1License NoLevel",606.66999999999996]
[12089,"269-05577","Microsoft®OfficeProfessionalPlus Sngl License/SoftwareAssurancePack OLP 1License NoLevel",917.74]
[18335,"269-09046","Microsoft®OfficeProfessionalPlus Sngl License/SoftwareAssurancePack OLV 1License NoLevel AdditionalProduct 1Year Acquiredyear1",386.75]
[17651,"269-09061","Microsoft®OfficeProfessionalPlus Sngl SoftwareAssurance OLV 1License NoLevel AdditionalProduct 1Year Acquiredyear1",179.85]
[13867,"269-09065","Microsoft®OfficeProfessionalPlus Sngl SoftwareAssurance OLV 1License NoLevel AdditionalProduct 3Year Acquiredyear1",537.39]
[12652,"543-06057","Microsoft®Outlook® 2013 Sngl OLP 1License NoLevel",90.09]
[14557,"543-02643","Microsoft®Outlook® Sngl License/SoftwareAssurancePack OLV 1License NoLevel AdditionalProduct 1Year Acquiredyear1",60.72]
[13817,"079-06205","Microsoft®PowerPoint® 2013 Sngl OLP 1License NoLevel",209.73]
[12912,"076-05346","Microsoft®Project 2013 Government OLP 1License NoLevel",425.69]
[14661,"076-05313","Microsoft®Project 2013 Sngl Academic OLP 1License NoLevel",96.55]
[12666,"076-05334","Microsoft®Project 2013 Sngl OLP 1License NoLevel",644.05999999999995]
[47678,"076-03395","Microsoft®Project Sngl License/SoftwareAssurancePack OLV 1License NoLevel AdditionalProduct 1Year Acquiredyear1",429]
[18902,"S5Z-00003","Microsoft®ProjectOnlineOpen ShrdSvr Sngl SubscriptionVL OLP 1License NoLevel Qualified Annual",380.36]
[13712,"H30-04052","Microsoft®ProjectProfessional 2013 Sngl Academic OLP 1License NoLevel w/1ProjectSvrCAL",160.97999999999999]
[13582,"H30-04073","Microsoft®ProjectProfessional 2013 Sngl OLP 1License NoLevel w/1ProjectSvrCAL",1073.55]
[15642,"164-07297","Microsoft®Publisher 2013 Sngl OLP 1License NoLevel",149.19]
[15736,"76N-03701","Microsoft®SharePointEnterpriseCAL 2013 Sngl OLP 1License NoLevel UsrCAL",108.99]
[15733,"76P-01501","Microsoft®SharePointServer 2013 Sngl OLP 1License NoLevel",7774.3]
[15734,"76M-01518","Microsoft®SharePointStandardCAL 2013 Sngl OLP 1License NoLevel UsrCAL",123.84]
[16917,"359-06117","Microsoft®SQLCAL 2014 Government OLP 1License NoLevel DvcCAL",157.81]
[16918,"359-06118","Microsoft®SQLCAL 2014 Government OLP 1License NoLevel UsrCAL",157.81]
[16919,"359-06074","Microsoft®SQLCAL 2014 Sngl Academic OLP 1License NoLevel DvcCAL",59.74]
[16920,"359-06076","Microsoft®SQLCAL 2014 Sngl Academic OLP 1License NoLevel UsrCAL",59.74]
[16921,"359-06096","Microsoft®SQLCAL 2014 Sngl OLP 1License NoLevel DvcCAL",238.8]
[16922,"359-06098","Microsoft®SQLCAL 2014 Sngl OLP 1License NoLevel UsrCAL",238.8]
[46162,"359-01466","Microsoft®SQLCAL Sngl License/SoftwareAssurancePack OLV 1License NoLevel AdditionalProduct DvcCAL 1Year Acquiredyear1",145.35]
[15400,"359-01471","Microsoft®SQLCAL Sngl License/SoftwareAssurancePack OLV 1License NoLevel AdditionalProduct UsrCAL 1Year Acquiredyear1",150.74]
[18593,"359-01472","Microsoft®SQLCAL Sngl License/SoftwareAssurancePack OLV 1License NoLevel AdditionalProduct UsrCAL 1Year Acquiredyear2",191.48]
[46861,"359-01028","Microsoft®SQLCAL Sngl SoftwareAssurance OLP 1License NoLevel UsrCAL",119.48]
[8259,"359-01474","Microsoft®SQLCAL Sngl SoftwareAssurance OLV 1License NoLevel AdditionalProduct DvcCAL 1Year Acquiredyear1",67.7]
[13869,"359-01481","Microsoft®SQLCAL Sngl SoftwareAssurance OLV 1License NoLevel AdditionalProduct UsrCAL 3Year Acquiredyear1",165.83]
[16923,"D2M-00677","Microsoft®SQLServerBusinessIntelligence 2014 Government OLP 1License NoLevel Qualified",6493.22]
[16924,"D2M-00656","Microsoft®SQLServerBusinessIntelligence 2014 Sngl Academic OLP 1License NoLevel Qualified",2456.29]
[16926,"D2M-00667","Microsoft®SQLServerBusinessIntelligence 2014 Sngl OLP 1License NoLevel Qualified",9825.32]
[16927,"E32-01176","Microsoft®SQLServerDeveloperEdition 2014 Government OLP 1License NoLevel",27.66]
[16929,"E32-01155","Microsoft®SQLServerDeveloperEdition 2014 Sngl Academic OLP 1License NoLevel",10.49]
[16928,"E32-01166","Microsoft®SQLServerDeveloperEdition 2014 Sngl OLP 1License NoLevel",41.82]
[8241,"810-04881","Microsoft®SQLServerEnterpriseEdition Sngl SoftwareAssurance OLV 1License NoLevel AdditionalProduct 1Year Acquiredyear1",2783.52]
[16930,"228-10354","Microsoft®SQLServerStandardEdition 2014 Government OLP 1License NoLevel",678.13]
[16932,"228-10333","Microsoft®SQLServerStandardEdition 2014 Sngl Academic OLP 1License NoLevel",256.56]
[16931,"228-10344","Microsoft®SQLServerStandardEdition 2014 Sngl OLP 1License NoLevel",1026.08]
[15399,"228-04738","Microsoft®SQLServerStandardEdition Sngl License/SoftwareAssurancePack OLV 1License NoLevel AdditionalProduct 1Year Acquiredyear1",647.12]
[46858,"228-04560","Microsoft®SQLServerStandardEdition Sngl SoftwareAssurance OLP 1License NoLevel",513.12]
[13870,"228-04725","Microsoft®SQLServerStandardEdition Sngl SoftwareAssurance OLV 1License NoLevel AdditionalProduct 3Year Acquiredyear1",712.19]
[16933,"7JQ-00768","Microsoft®SQLSvrEnterpriseCore 2014 Government OLP 2Licenses NoLevel CoreLic Qualified",10390.58]
[16934,"7JQ-00735","Microsoft®SQLSvrEnterpriseCore 2014 Sngl Academic OLP 2Licenses NoLevel CoreLic Qualified",3930.58]
[16935,"7JQ-00751","Microsoft®SQLSvrEnterpriseCore 2014 Sngl OLP 2Licenses NoLevel CoreLic Qualified",15722.5]
[16936,"7NQ-00580","Microsoft®SQLSvrStandardCore 2014 Government OLP 2Licenses NoLevel CoreLic Qualified",2709.72]
[16937,"7NQ-00547","Microsoft®SQLSvrStandardCore 2014 Sngl Academic OLP 2Licenses NoLevel CoreLic Qualified",1025.1099999999999]
[16938,"7NQ-00563","Microsoft®SQLSvrStandardCore 2014 Sngl OLP 2Licenses NoLevel CoreLic Qualified",4100.28]
[11851,"7NQ-00162","Microsoft®SQLSvrStandardCore Sngl License/SoftwareAssurancePack OLV 2Licenses NoLevel AdditionalProduct CoreLic 3Year Acquiredyear1",6746.3]
[17279,"J5A-00107","Microsoft®SysCtrConfigMgrCltMgmtLic Sngl License/SoftwareAssurancePack OLP 1License NoLevel PerOSE",70.709999999999994]
[10487,"M3J-00079","Microsoft®SysCtrEndpointProtection Sngl MonthlySubscriptions-VolumeLicense OLV 1License NoLevel AdditionalProduct PerDvc 1Month",12.45]
[16322,"M3J-00081","Microsoft®SysCtrEndpointProtection Sngl MonthlySubscriptions-VolumeLicense OLV 1License NoLevel AdditionalProduct PerUsr 1Month",12.48]
[14521,"T9L-00061","Microsoft®SysCtrStandard License/SoftwareAssurancePack Government OLP 1License NoLevel 2Proc Qualified",1000.21]
[13061,"4ZF-00014","Microsoft®VDA Sngl MonthlySubscriptions-VolumeLicense OLV 1License NoLevel AdditionalProduct PerDvc 1Month",8.93]
[12857,"D87-05974","Microsoft®Visio®Professional 2013 Government OLP 1License NoLevel",364.06]
[18214,"D87-05941","Microsoft®Visio®Professional 2013 Sngl Academic OLP 1License NoLevel",82.67]
[13039,"D87-05962","Microsoft®Visio®Professional 2013 Sngl OLP 1License NoLevel",550.91]
[13871,"D87-02408","Microsoft®Visio®Professional Sngl SoftwareAssurance OLV 1License NoLevel AdditionalProduct 3Year Acquiredyear1",443.27]
[12668,"D86-05349","Microsoft®Visio®Standard 2013 Government OLP 1License NoLevel",188.42]
[12667,"D86-05338","Microsoft®Visio®Standard 2013 Sngl OLP 1License NoLevel",285.14]
[47679,"D86-02423","Microsoft®Visio®Standard Sngl License/SoftwareAssurancePack OLV 1License NoLevel AdditionalProduct 1Year Acquiredyear1",189.9]
[9922,"D86-02333","Microsoft®Visio®Standard SoftwareAssurance Government OLP 1License NoLevel",90.98]
[16130,"C5E-01141","Microsoft®VisualStudio®Professional 2013 Government OLP 1License NoLevel",376.27]
[17632,"C5E-01120","Microsoft®VisualStudio®Professional 2013 Sngl Academic OLP 1License NoLevel",85.41]
[15925,"C5E-01131","Microsoft®VisualStudio®Professional 2013 Sngl OLP 1License NoLevel",569.47]
[17674,"126-02004","Microsoft®VisualStudio®TeamFndationSvrCAL 2013 Sngl OLP 1License NoLevel DvcCAL",443.04]
[17673,"125-01366","Microsoft®VisualStudio®TeamFoundationServer 2013 Sngl OLP 1License NoLevel",443.04]
[9154,"9ED-00128","Microsoft®VisualStudioPremiumw/MSDN AllLng License/SoftwareAssurancePack OLP 1License LevelC",3026.36]
[13853,"9ED-00130","Microsoft®VisualStudioPremiumw/MSDN AllLng License/SoftwareAssurancePack OLP 1License NoLevel Qualified",8170.52]
[46420,"9ED-00133","Microsoft®VisualStudioPremiumw/MSDN AllLng SoftwareAssurance OLP 1License NoLevel Qualified",2999.28]
[7312,"77D-00092","Microsoft®VisualStudioProw/MSDN AllLng License/SoftwareAssurancePack OLP 1License NoLevel Qualified",1301.53]
[16129,"77D-00105","Microsoft®VisualStudioProw/MSDN License/SoftwareAssurancePack Government OLP 1License NoLevel Qualified",859.95]
[15622,"WN7-01174","Microsoft®Win 8.1 Sngl Academic OLP 1License NoLevel GetGenuine",125.66]
[11991,"R18-04290","Microsoft®Windows®ServerCAL 2012 Government OLP 1License NoLevel DvcCAL",22.04]
[12074,"R18-04291","Microsoft®Windows®ServerCAL 2012 Government OLP 1License NoLevel UsrCAL",25.41]
[12055,"R18-04271","Microsoft®Windows®ServerCAL 2012 Sngl Academic OLP 1License NoLevel DvcCAL",8.4]
[15702,"R18-04273","Microsoft®Windows®ServerCAL 2012 Sngl Academic OLP 1License NoLevel UsrCAL",8.4]
[11618,"R18-04277","Microsoft®Windows®ServerCAL 2012 Sngl OLP 1License NoLevel DvcCAL",32.86]
[11619,"R18-04281","Microsoft®Windows®ServerCAL 2012 Sngl OLP 1License NoLevel UsrCAL",37.770000000000003]
[47203,"R18-00144","Microsoft®Windows®ServerCAL Sngl License/SoftwareAssurancePack OLP 1License NoLevel DvcCAL",50.22]
[9940,"R18-01850","Microsoft®Windows®ServerCAL Sngl License/SoftwareAssurancePack OLV 1License NoLevel AdditionalProduct DvcCAL 1Year Acquiredyear1",22.14]
[11850,"R18-01848","Microsoft®Windows®ServerCAL Sngl License/SoftwareAssurancePack OLV 1License NoLevel AdditionalProduct DvcCAL 3Year Acquiredyear1",55.1]
[8829,"R18-01855","Microsoft®Windows®ServerCAL Sngl License/SoftwareAssurancePack OLV 1License NoLevel AdditionalProduct UsrCAL 1Year Acquiredyear1",23.32]
[18594,"R18-01856","Microsoft®Windows®ServerCAL Sngl License/SoftwareAssurancePack OLV 1License NoLevel AdditionalProduct UsrCAL 1Year Acquiredyear2",30.75]
[8957,"R18-00146","Microsoft®Windows®ServerCAL Sngl SoftwareAssurance OLP 1License NoLevel DvcCAL",16.79]
[18893,"R18-00145","Microsoft®Windows®ServerCAL Sngl SoftwareAssurance OLP 1License NoLevel UsrCAL",19.05]
[13873,"R18-01860","Microsoft®Windows®ServerCAL Sngl SoftwareAssurance OLV 1License NoLevel AdditionalProduct DvcCAL 3Year Acquiredyear1",26.89]
[17652,"R18-01863","Microsoft®Windows®ServerCAL Sngl SoftwareAssurance OLV 1License NoLevel AdditionalProduct UsrCAL 1Year Acquiredyear1",10.199999999999999]
[13874,"R18-01865","Microsoft®Windows®ServerCAL Sngl SoftwareAssurance OLV 1License NoLevel AdditionalProduct UsrCAL 3Year Acquiredyear1",30.48]
[15632,"P71-07845","Microsoft®Windows®ServerDatacenter 2012R2 Government OLP 1License NoLevel 2Proc Qualified",4652.72]
[15634,"P71-07822","Microsoft®Windows®ServerDatacenter 2012R2 Sngl Academic OLP 1License NoLevel 2Proc Qualified",1760.08]
[15633,"P71-07835","Microsoft®Windows®ServerDatacenter 2012R2 Sngl OLP 1License NoLevel 2Proc Qualified  - PROMO 10% OFF APLICADO",6919.95]
[11849,"P71-07117","Microsoft®Windows®ServerDatacenter Sngl License/SoftwareAssurancePack OLV 1License NoLevel AdditionalProduct 2Proc 3Year Acquiredyear1",9047.11]
[17653,"P71-06974","Microsoft®Windows®ServerDatacenter Sngl SoftwareAssurance OLV 1License NoLevel AdditionalProduct 2Proc 1Year Acquiredyear1",1880.4]
[13875,"P71-07121","Microsoft®Windows®ServerDatacenter Sngl SoftwareAssurance OLV 1License NoLevel AdditionalProduct 2Proc 3Year Acquiredyear1",4389.22]
[15639,"P73-06295","Microsoft®Windows®ServerStandard 2012R2 Government OLP 1License NoLevel 2Proc",666.9]
[15641,"P73-06272","Microsoft®Windows®ServerStandard 2012R2 Sngl Academic OLP 1License NoLevel 2Proc",252.21]
[15640,"P73-06285","Microsoft®Windows®ServerStandard 2012R2 Sngl OLP 1License NoLevel 2Proc PROMO 10% OFF APLICADO",991.88]
[15407,"P73-05599","Microsoft®Windows®ServerStandard Sngl License/SoftwareAssurancePack OLV 1License NoLevel AdditionalProduct 2Proc 1Year Acquiredyear1",636.35]
[15921,"P73-05590","Microsoft®Windows®ServerStandard Sngl License/SoftwareAssurancePack OLV 1License NoLevel AdditionalProduct 2Proc 1Year Acquiredyear3",1363.77]
[18884,"P73-05760","Microsoft®Windows®ServerStandard Sngl SoftwareAssurance OLP 1License NoLevel 2Proc",504.4]
[13876,"P73-05736","Microsoft®Windows®ServerStandard Sngl SoftwareAssurance OLV 1License NoLevel AdditionalProduct 2Proc 3Year Acquiredyear1",804.97]
[18843,"EJF-02390","Microsoft®WindowsMultiPointServerCAL 2012 Sngl OLP 1License NoLevel DvcCAL",125.13]
[18841,"V7J-00933","Microsoft®WindowsMultiPointServerPremium 2012 Sngl OLP 1License NoLevel",933.72]
[15628,"FQC-08147","Microsoft®WindowsProfessional 8.1 Sngl OLP 1License NoLevel Legalization GetGenuine",210.28]
[15630,"FQC-08173","Microsoft®WindowsProfessional 8.1 Sngl Upgrade Academic OLP 1License NoLevel",74.75]
[15629,"FQC-08190","Microsoft®WindowsProfessional 8.1 Sngl Upgrade OLP 1License NoLevel",213.77]
[15627,"FQC-08202","Microsoft®WindowsProfessional 8.1 Upgrade Government OLP 1License NoLevel",141.24]
[15635,"G3S-00771","Microsoft®WindowsServerEssentials 2012R2 Government OLP 1License NoLevel",377.96]
[15637,"G3S-00748","Microsoft®WindowsServerEssentials 2012R2 Sngl Academic OLP 1License NoLevel",143.06]
[15636,"G3S-00761","Microsoft®WindowsServerEssentials 2012R2 Sngl OLP 1License NoLevel",562.12]
[18738,"CW2-00232","Microsoft®WinEntforSA Sngl SoftwareAssurance OLP 1License NoLevel",124]
[18438,"CW2-00234","Microsoft®WinEntforSA Sngl Upgrade/SoftwareAssurancePack OLP 1License NoLevel",337.78]
[18238,"CW2-00256","Microsoft®WinEntforSA SoftwareAssurance Government OLP 1License NoLevel",81.99]
[7858,"66J-05391","Microsoft®WinProDVDPlayback Government OLP 1License NoLevel WinVistaBsnss",5.05]
[9389,"66J-05382","Microsoft®WinProDVDPlayback Sngl Academic OLP 1License NoLevel WinVistaBsnss",5.81]
[7208,"66J-05385","Microsoft®WinProDVDPlayback Sngl OLP 1License NoLevel WinVistaBsnss",5.81]
[18889,"9YP-00009","Microsoft®WinRentalRights Government OLP 1License NoLevel",4.63]
[17903,"6VC-02076","Microsoft®WinRmtDsktpSvcsCAL 2012 Government OLP 1License NoLevel DvcCAL",76.52]
[47426,"6VC-02077","Microsoft®WinRmtDsktpSvcsCAL 2012 Government OLP 1License NoLevel UsrCAL",88.03]
[17086,"6VC-02060","Microsoft®WinRmtDsktpSvcsCAL 2012 Sngl Academic OLP 1License NoLevel DvcCAL",28.9]
[11620,"6VC-02071","Microsoft®WinRmtDsktpSvcsCAL 2012 Sngl OLP 1License NoLevel DvcCAL",113.94]
[11621,"6VC-02073","Microsoft®WinRmtDsktpSvcsCAL 2012 Sngl OLP 1License NoLevel UsrCAL",130.93]
[47204,"6VC-01149","Microsoft®WinRmtDsktpSvcsCAL Sngl License/SoftwareAssurancePack OLP 1License NoLevel DvcCAL",173.73]
[8244,"6VC-00699","Microsoft®WinRmtDsktpSvcsCAL Sngl License/SoftwareAssurancePack OLV 1License NoLevel AdditionalProduct DvcCAL 1Year Acquiredyear1",63.73]
[15401,"6VC-00701","Microsoft®WinRmtDsktpSvcsCAL Sngl License/SoftwareAssurancePack OLV 1License NoLevel AdditionalProduct UsrCAL 1Year Acquiredyear1",84.12]
[8261,"6VC-00703","Microsoft®WinRmtDsktpSvcsCAL Sngl SoftwareAssurance OLV 1License NoLevel AdditionalProduct DvcCAL 1Year Acquiredyear1",27.26]
[15631,"4HR-00400","Microsoft®WinSL 8.1 Sngl Academic OLP 1License NoLevel Legalization GetGenuine",101.79]
[7650,"6UA-03860","Microsoft®WinSmallBusCALSte 2011 Sngl OLP 1License NoLevel DvcCAL",71.849999999999994]
[7184,"6UA-03863","Microsoft®WinSmallBusCALSte 2011 Sngl OLP 1License NoLevel UsrCAL",71.849999999999994]
[13719,"6UA-03755","Microsoft®WinSmallBusCALSte 2011 Sngl OLP 20Licenses NoLevel DvcCAL Qualified",1250.26]
[7882,"6UA-03670","Microsoft®WinSmallBusCALSte 2011 Sngl OLP 5Licenses NoLevel DvcCAL",359.41]
[13843,"6UA-03673","Microsoft®WinSmallBusCALSte 2011 Sngl OLP 5Licenses NoLevel UsrCAL",359.41]
[7645,"2YG-00860","Microsoft®WinSmallBusSvrPremAddOnCALSte 2011 Sngl OLP 1License NoLevel DvcCAL",90.9]
[8575,"2YG-00873","Microsoft®WinSmallBusSvrPremAddOnCALSte 2011 Sngl OLP 1License NoLevel UsrCAL",90.9]
[46200,"2YG-01476","Microsoft®WinSmallBusSvrPremAddOnCALSte 2011 Sngl OLP 5Licenses NoLevel DvcCAL",454.84]
[8419,"2YG-01479","Microsoft®WinSmallBusSvrPremAddOnCALSte 2011 Sngl OLP 5Licenses NoLevel UsrCAL",454.84]
[12777,"059-08651","Microsoft®Word 2013 Government OLP 1License NoLevel",138.57]
[15230,"059-08637","Microsoft®Word 2013 Sngl OLP 1License NoLevel",209.73]
[]
[null,"Formas de pago","Seleccionar de menú desplegable"]
[null,null,"Contado, Transferencia o Cheque al día -  4% de DESCUENTO"]
[null,null,"Cheque 0, 30 días - 3%  de DESCUENTO"]
[null,null,"Cheque 0, 30, 60 días - 2%  de DESCUENTO"]
[null,null,"Cheque 0, 30, 60, 90 días - 1%  de DESCUENTO"]
[null,null,"Cheque 0, 30, 60, 90, 120 días - SIN INTERES"]
[null,"Valores","Seleccionar de menú desplegable"]
[null,null,"Paga con Transferencia"]
[null,null,"Paga con Cheques Propios del Reseller"]
[null,null,"Paga con Cheques de Terceros del Reseller"]
[null,null,"Paga con Cheques Propios del Final"]
[null,null,"Paga con Cheques de Terceros del Final"]